[Event "Titled Tuesday Blitz November 29 Late 2022"]
[White "Carlsen, Magnus"]
[Black "Bluebaum, Matthias"]
[WhiteFideId "1503014"]
[BlackFideId "24651516"]
[WhiteElo "2830"]
[BlackElo "2633"]
[Result "1/2-1/2"]
[Round "06"]
[TimeControl "180+1"]
[Date "2022.11.30"]
[WhiteClock "0:00:14"]
[BlackClock "0:00:22"]

1. e4 {[%clk 0:02:57]}  e6 {[%clk 0:03:00]} 2. b3 {[%clk 0:02:56]}  d5 {[%clk 0:03:00]} 3. Bb2 {[%clk 0:02:56]}  a6 {[%clk 0:03:01]} 4. Qe2 {[%clk 0:02:51]}  d4 {[%clk 0:03:01]} 5. Nf3 {[%clk 0:02:44]}  c5 {[%clk 0:03:01]} 6. g3 {[%clk 0:02:44]}  Nc6 {[%clk 0:03:01]} 7. e5 {[%clk 0:02:44]}  b5 {[%clk 0:02:48]} 8. Bg2 {[%clk 0:02:43]}  Bb7 {[%clk 0:02:48]} 9. O-O {[%clk 0:02:42]}  Qd7 {[%clk 0:02:47]} 10. d3 {[%clk 0:02:42]}  Nge7 {[%clk 0:02:46]} 11. Nbd2 {[%clk 0:02:38]}  Nd5 {[%clk 0:02:37]} 12. Ne4 {[%clk 0:02:35]}  Be7 {[%clk 0:02:37]} 13. Ba3 {[%clk 0:02:21]}  b4 {[%clk 0:02:30]} 14. Bc1 {[%clk 0:02:21]}  Nc3 {[%clk 0:02:30]} 15. Qe1 {[%clk 0:02:21]}  h6 {[%clk 0:02:24]} 16. h4 {[%clk 0:02:18]}  Qc7 {[%clk 0:02:21]} 17. Bf4 {[%clk 0:02:06]}  Nd5 {[%clk 0:01:59]} 18. a4 {[%clk 0:01:45]}  bxa3 {[%clk 0:01:38]} 19. Rxa3 {[%clk 0:01:40]}  O-O {[%clk 0:01:35]} 20. Ra1 {[%clk 0:01:35]}  Nxf4 {[%clk 0:01:27]} 21. gxf4 {[%clk 0:01:35]}  Nb4 {[%clk 0:01:24]} 22. Qd2 {[%clk 0:01:27]}  f5 {[%clk 0:01:21]} 23. Ng3 {[%clk 0:01:25]}  Bd5 {[%clk 0:01:11]} 24. h5 {[%clk 0:01:24]}  Qb7 {[%clk 0:01:11]} 25. Ne1 {[%clk 0:01:25]}  a5 {[%clk 0:01:11]} 26. Bxd5 {[%clk 0:01:23]}  Nxd5 {[%clk 0:01:11]} 27. Ng2 {[%clk 0:01:21]}  Qb4 {[%clk 0:01:09]} 28. Qd1 {[%clk 0:01:21]}  Rfb8 {[%clk 0:00:55]} 29. Qf3 {[%clk 0:01:20]}  Qb7 {[%clk 0:00:54]} 30. Rfc1 {[%clk 0:01:04]}  Nc3 {[%clk 0:00:54]} 31. Qxb7 {[%clk 0:00:58]}  Rxb7 {[%clk 0:00:55]} 32. Kf1 {[%clk 0:00:58]}  a4 {[%clk 0:00:44]} 33. bxa4 {[%clk 0:00:58]}  Rxa4 {[%clk 0:00:38]} 34. Rxa4 {[%clk 0:00:56]}  Nxa4 {[%clk 0:00:39]} 35. Ne2 {[%clk 0:00:57]}  Rb2 {[%clk 0:00:38]} 36. Ne1 {[%clk 0:00:56]}  Nb6 {[%clk 0:00:33]} 37. c4 {[%clk 0:00:36]}  dxc3 {[%clk 0:00:32]} 38. Nxc3 {[%clk 0:00:37]}  Rb3 {[%clk 0:00:31]} 39. Ke2 {[%clk 0:00:36]}  Kf7 {[%clk 0:00:31]} 40. Ng2 {[%clk 0:00:35]}  c4 {[%clk 0:00:29]} 41. dxc4 {[%clk 0:00:32]}  Nxc4 {[%clk 0:00:30]} 42. Ne3 {[%clk 0:00:32]}  Rb2+ {[%clk 0:00:24]} 43. Kf3 {[%clk 0:00:26]}  Nd2+ {[%clk 0:00:23]} 44. Kg2 {[%clk 0:00:26]}  Nb3 {[%clk 0:00:23]} 45. Rd1 {[%clk 0:00:23]}  Bc5 {[%clk 0:00:23]} 46. Kg3 {[%clk 0:00:17]}  Nd4 {[%clk 0:00:22]} 47. Ra1 {[%clk 0:00:16]}  Rb3 {[%clk 0:00:22]} 48. Ncd1 {[%clk 0:00:15]}  Ne2+ {[%clk 0:00:21]} 49. Kf3 {[%clk 0:00:15]}  Nd4+ {[%clk 0:00:22]} 50. Kg2 {[%clk 0:00:16]}  Ne2 {[%clk 0:00:21]} 51. Ra4 {[%clk 0:00:16]}  Bb4 {[%clk 0:00:19]} 52. Ra7+ {[%clk 0:00:16]}  Kf8 {[%clk 0:00:19]} 53. Kf3 {[%clk 0:00:16]}  Nd4+ {[%clk 0:00:20]} 54. Kg2 {[%clk 0:00:16]}  Ne2 {[%clk 0:00:20]} 55. Kf3 {[%clk 0:00:13]}  Nd4+ {[%clk 0:00:21]} 56. Kg2 {[%clk 0:00:14]}  Ne2 {[%clk 0:00:22]} 1/2-1/2


[Site "https://www.chess.com"]

[Event "Titled Tuesday Blitz November 29 Late 2022"]
[White "Chigaev, Maksim"]
[Black "Yanchenko, Roman"]
[WhiteFideId "4108116"]
[BlackFideId "4137329"]
[WhiteElo "2541"]
[BlackElo "2489"]
[Result "1/2-1/2"]
[Round "06"]
[TimeControl "180+1"]
[Date "2022.11.30"]
[WhiteClock "0:00:07"]
[BlackClock "0:00:15"]

1. c4 {[%clk 0:03:00]}  e6 {[%clk 0:02:59]} 2. g3 {[%clk 0:03:00]}  d5 {[%clk 0:02:59]} 3. Bg2 {[%clk 0:03:00]}  Nf6 {[%clk 0:03:00]} 4. Nf3 {[%clk 0:03:01]}  Be7 {[%clk 0:03:00]} 5. O-O {[%clk 0:03:01]}  O-O {[%clk 0:03:00]} 6. b3 {[%clk 0:03:02]}  b6 {[%clk 0:03:00]} 7. d4 {[%clk 0:03:02]}  Bb7 {[%clk 0:03:00]} 8. Nc3 {[%clk 0:03:03]}  dxc4 {[%clk 0:02:59]} 9. bxc4 {[%clk 0:03:03]}  c5 {[%clk 0:03:00]} 10. d5 {[%clk 0:02:55]}  exd5 {[%clk 0:02:53]} 11. Nh4 {[%clk 0:02:53]}  Nc6 {[%clk 0:02:51]} 12. cxd5 {[%clk 0:02:49]}  Na5 {[%clk 0:02:22]} 13. Nf5 {[%clk 0:02:49]}  Re8 {[%clk 0:02:18]} 14. Nxe7+ {[%clk 0:02:34]}  Qxe7 {[%clk 0:02:18]} 15. e4 {[%clk 0:02:34]}  Rad8 {[%clk 0:02:15]} 16. Bf4 {[%clk 0:02:22]}  Nc4 {[%clk 0:02:12]} 17. Qa4 {[%clk 0:02:11]}  Na5 {[%clk 0:02:11]} 18. h3 {[%clk 0:02:06]}  h6 {[%clk 0:02:06]} 19. Rfe1 {[%clk 0:02:05]}  g5 {[%clk 0:02:05]} 20. Bd2 {[%clk 0:02:02]}  Qe5 {[%clk 0:02:02]} 21. Rad1 {[%clk 0:01:54]}  Qd4 {[%clk 0:01:38]} 22. Qxd4 {[%clk 0:01:50]}  cxd4 {[%clk 0:01:38]} 23. Nb5 {[%clk 0:01:50]}  Nc4 {[%clk 0:01:39]} 24. Bc1 {[%clk 0:01:24]}  d3 {[%clk 0:01:39]} 25. Nc3 {[%clk 0:01:00]}  Bxd5 {[%clk 0:01:11]} 26. Nxd5 {[%clk 0:00:34]}  Nxd5 {[%clk 0:01:11]} 27. exd5 {[%clk 0:00:29]}  Rxe1+ {[%clk 0:01:10]} 28. Rxe1 {[%clk 0:00:30]}  d2 {[%clk 0:01:11]} 29. Bxd2 {[%clk 0:00:31]}  Nxd2 {[%clk 0:01:12]} 30. Re7 {[%clk 0:00:31]}  a5 {[%clk 0:01:02]} 31. Rc7 {[%clk 0:00:32]}  b5 {[%clk 0:00:49]} 32. Rc5 {[%clk 0:00:28]}  Rb8 {[%clk 0:00:46]} 33. d6 {[%clk 0:00:26]}  Kf8 {[%clk 0:00:40]} 34. d7 {[%clk 0:00:24]}  Rd8 {[%clk 0:00:40]} 35. Bc6 {[%clk 0:00:20]}  b4 {[%clk 0:00:40]} 36. Re5 {[%clk 0:00:20]}  Rxd7 {[%clk 0:00:36]} 37. Rxa5 {[%clk 0:00:20]}  Rd6 {[%clk 0:00:28]} 38. Bd5 {[%clk 0:00:18]}  Nb1 {[%clk 0:00:23]} 39. Bc4 {[%clk 0:00:13]}  Nd2 {[%clk 0:00:22]} 40. Bd5 {[%clk 0:00:13]}  Kg7 {[%clk 0:00:22]} 41. Kg2 {[%clk 0:00:13]}  Nb1 {[%clk 0:00:20]} 42. g4 {[%clk 0:00:11]}  Nc3 {[%clk 0:00:20]} 43. Bb3 {[%clk 0:00:10]}  Rf6 {[%clk 0:00:20]} 44. Re5 {[%clk 0:00:06]}  Rf4 {[%clk 0:00:20]} 45. f3 {[%clk 0:00:05]}  Nb1 {[%clk 0:00:20]} 46. Re7 {[%clk 0:00:02]}  Nd2 {[%clk 0:00:20]} 47. Kg3 {[%clk 0:00:03]}  Rxf3+ {[%clk 0:00:17]} 48. Kg2 {[%clk 0:00:03]}  Rf4 {[%clk 0:00:17]} 49. Re3 {[%clk 0:00:04]}  Nb1 {[%clk 0:00:16]} 50. Rd3 {[%clk 0:00:04]}  Kg6 {[%clk 0:00:12]} 51. Kg3 {[%clk 0:00:04]}  Kg7 {[%clk 0:00:12]} 52. Kg2 {[%clk 0:00:04]}  Na3 {[%clk 0:00:12]} 53. Rd6 {[%clk 0:00:04]}  Nb5 {[%clk 0:00:12]} 54. Rd5 {[%clk 0:00:03]}  Nd4 {[%clk 0:00:12]} 55. Kg3 {[%clk 0:00:03]}  Ne2+ {[%clk 0:00:12]} 56. Kg2 {[%clk 0:00:03]}  Nc3 {[%clk 0:00:12]} 57. Ra5 {[%clk 0:00:02]}  Ne4 {[%clk 0:00:12]} 58. Re5 {[%clk 0:00:03]}  Nd6 {[%clk 0:00:11]} 59. Rd5 {[%clk 0:00:02]}  Ne4 {[%clk 0:00:12]} 60. Rd4 {[%clk 0:00:03]}  Nc3 {[%clk 0:00:11]} 61. Rxf4 {[%clk 0:00:03]}  gxf4 {[%clk 0:00:11]} 62. Kf3 {[%clk 0:00:04]}  f6 {[%clk 0:00:11]} 63. Kxf4 {[%clk 0:00:04]}  Kg6 {[%clk 0:00:12]} 64. Bc2+ {[%clk 0:00:05]}  Kg7 {[%clk 0:00:12]} 65. Bb3 {[%clk 0:00:05]}  Kg6 {[%clk 0:00:12]} 66. Bc4 {[%clk 0:00:05]}  h5 {[%clk 0:00:12]} 67. gxh5+ {[%clk 0:00:04]}  Kxh5 {[%clk 0:00:12]} 68. Kf5 {[%clk 0:00:04]}  Kh4 {[%clk 0:00:13]} 69. Kxf6 {[%clk 0:00:05]}  Kxh3 {[%clk 0:00:13]} 70. Ke5 {[%clk 0:00:06]}  Nxa2 {[%clk 0:00:14]} 71. Bxa2 {[%clk 0:00:06]}  b3 {[%clk 0:00:15]} 72. Bxb3 {[%clk 0:00:07]} 1/2-1/2


[Site "https://www.chess.com"]

[Event "Titled Tuesday Blitz November 29 Late 2022"]
[White "Clawitter, Craig"]
[Black "Savic, Miroslav"]
[WhiteFideId "2023105"]
[BlackFideId "14508494"]
[WhiteElo "2260"]
[BlackElo "2209"]
[Result "1-0"]
[Round "06"]
[TimeControl "180+1"]
[Date "2022.11.30"]
[WhiteClock "0:00:17"]
[BlackClock "0:00:04"]

1. e4 {[%clk 0:03:00]}  c5 {[%clk 0:02:58]} 2. Nf3 {[%clk 0:03:01]}  d6 {[%clk 0:02:58]} 3. d4 {[%clk 0:03:02]}  cxd4 {[%clk 0:02:58]} 4. Nxd4 {[%clk 0:03:02]}  Nf6 {[%clk 0:02:58]} 5. Nc3 {[%clk 0:03:03]}  a6 {[%clk 0:02:58]} 6. Be3 {[%clk 0:03:03]}  e5 {[%clk 0:02:59]} 7. Nb3 {[%clk 0:03:04]}  Be6 {[%clk 0:02:58]} 8. f3 {[%clk 0:03:04]}  Be7 {[%clk 0:02:58]} 9. Qd2 {[%clk 0:03:04]}  O-O {[%clk 0:02:58]} 10. O-O-O {[%clk 0:03:05]}  Qc7 {[%clk 0:02:57]} 11. g4 {[%clk 0:03:05]}  b5 {[%clk 0:02:57]} 12. Rg1 {[%clk 0:02:59]}  b4 {[%clk 0:02:51]} 13. Nd5 {[%clk 0:02:59]}  Bxd5 {[%clk 0:02:50]} 14. exd5 {[%clk 0:03:00]}  Rc8 {[%clk 0:02:39]} 15. g5 {[%clk 0:02:55]}  Nxd5 {[%clk 0:02:37]} 16. Bd3 {[%clk 0:02:36]}  Nxe3 {[%clk 0:02:36]} 17. Qxe3 {[%clk 0:02:37]}  a5 {[%clk 0:02:37]} 18. Qe4 {[%clk 0:02:32]}  g6 {[%clk 0:02:17]} 19. Qxa8 {[%clk 0:02:31]}  Nc6 {[%clk 0:02:11]} 20. Qa6 {[%clk 0:02:23]}  Bf8 {[%clk 0:01:40]} 21. Kb1 {[%clk 0:02:18]}  Bg7 {[%clk 0:01:38]} 22. Be4 {[%clk 0:02:01]}  d5 {[%clk 0:01:24]} 23. Rxd5 {[%clk 0:01:46]}  Ne7 {[%clk 0:01:21]} 24. Rc5 {[%clk 0:01:39]}  Qd7 {[%clk 0:00:55]} 25. Rxc8+ {[%clk 0:01:34]}  Nxc8 {[%clk 0:00:55]} 26. Qc6 {[%clk 0:01:15]}  Qd8 {[%clk 0:00:47]} 27. h4 {[%clk 0:01:06]}  h5 {[%clk 0:00:33]} 28. Qd5 {[%clk 0:00:45]}  Qb6 {[%clk 0:00:30]} 29. Rd1 {[%clk 0:00:43]}  Bf8 {[%clk 0:00:22]} 30. Qd8 {[%clk 0:00:34]}  Qa6 {[%clk 0:00:18]} 31. Bd3 {[%clk 0:00:30]}  Qc6 {[%clk 0:00:17]} 32. Be4 {[%clk 0:00:27]}  Qa6 {[%clk 0:00:17]} 33. Nc5 {[%clk 0:00:23]}  Qe2 {[%clk 0:00:15]} 34. Rc1 {[%clk 0:00:21]}  Nd6 {[%clk 0:00:05]} 35. Nd7 {[%clk 0:00:18]}  Nc4 {[%clk 0:00:05]} 36. Qxf8+ {[%clk 0:00:17]}  Kh7 {[%clk 0:00:05]} 37. Qxf7+ {[%clk 0:00:17]}  Kh8 {[%clk 0:00:05]} 38. Qf8+ {[%clk 0:00:17]}  Kh7 {[%clk 0:00:04]} 39. Nf6# {[%clk 0:00:17]} 1-0


[Site "https://www.chess.com"]

[Event "Titled Tuesday Blitz November 29 Late 2022"]
[White "Curtis, John"]
[Black "Pruess, David"]
[WhiteFideId "3200256"]
[BlackFideId "2014254"]
[WhiteElo "2203"]
[BlackElo "2433"]
[Result "1-0"]
[Round "06"]
[TimeControl "180+1"]
[Date "2022.11.30"]
[WhiteClock "0:00:58"]
[BlackClock "0:00:07"]

1. e4 {[%clk 0:03:00]}  e5 {[%clk 0:03:00]} 2. Nf3 {[%clk 0:03:00]}  Nc6 {[%clk 0:03:00]} 3. Bb5 {[%clk 0:02:58]}  Nf6 {[%clk 0:02:58]} 4. d3 {[%clk 0:02:56]}  Bc5 {[%clk 0:02:55]} 5. c3 {[%clk 0:02:51]}  d5 {[%clk 0:02:54]} 6. Qe2 {[%clk 0:02:48]}  O-O {[%clk 0:02:50]} 7. Bg5 {[%clk 0:02:41]}  a6 {[%clk 0:02:37]} 8. Ba4 {[%clk 0:02:38]}  b5 {[%clk 0:02:30]} 9. Bb3 {[%clk 0:02:35]}  d4 {[%clk 0:02:23]} 10. Bd5 {[%clk 0:02:27]}  Bd7 {[%clk 0:02:10]} 11. cxd4 {[%clk 0:02:16]}  Bxd4 {[%clk 0:01:49]} 12. Bxf6 {[%clk 0:01:53]}  Qxf6 {[%clk 0:01:47]} 13. Bxc6 {[%clk 0:01:51]}  Qxc6 {[%clk 0:01:34]} 14. Nxd4 {[%clk 0:01:39]}  Qc1+ {[%clk 0:01:10]} 15. Qd1 {[%clk 0:01:38]}  Qxd1+ {[%clk 0:01:10]} 16. Kxd1 {[%clk 0:01:38]}  exd4 {[%clk 0:01:11]} 17. Nd2 {[%clk 0:01:28]}  f5 {[%clk 0:00:35]} 18. Rc1 {[%clk 0:01:22]}  Rac8 {[%clk 0:00:34]} 19. Rc5 {[%clk 0:01:19]}  Be6 {[%clk 0:00:28]} 20. a3 {[%clk 0:01:07]}  fxe4 {[%clk 0:00:21]} 21. Nxe4 {[%clk 0:01:07]}  Rf5 {[%clk 0:00:14]} 22. f3 {[%clk 0:01:02]}  Kf8 {[%clk 0:00:11]} 23. Kd2 {[%clk 0:01:01]}  c6 {[%clk 0:00:07]} 24. Rxf5+ {[%clk 0:00:58]}  Bxf5 {[%clk 0:00:07]} 25. Nd6 {[%clk 0:00:58]} 1-0


[Site "https://www.chess.com"]

[Event "Titled Tuesday Blitz November 29 Late 2022"]
[White "Darini, Pouria"]
[Black "Shimanov, Aleksandr"]
[WhiteFideId "12502200"]
[BlackFideId "4198603"]
[WhiteElo "2483"]
[BlackElo "2605"]
[Result "0-1"]
[Round "06"]
[TimeControl "180+1"]
[Date "2022.11.30"]
[WhiteClock "0:00:08"]
[BlackClock "0:01:10"]

1. e4 {[%clk 0:03:00]}  e6 {[%clk 0:02:58]} 2. d4 {[%clk 0:03:00]}  d5 {[%clk 0:02:57]} 3. e5 {[%clk 0:03:00]}  c5 {[%clk 0:02:57]} 4. c3 {[%clk 0:03:01]}  Qa5 {[%clk 0:02:57]} 5. dxc5 {[%clk 0:02:53]}  Qc7 {[%clk 0:02:56]} 6. Nf3 {[%clk 0:02:53]}  Bxc5 {[%clk 0:02:55]} 7. Bd3 {[%clk 0:02:49]}  Nc6 {[%clk 0:02:55]} 8. Qe2 {[%clk 0:02:44]}  Nge7 {[%clk 0:02:54]} 9. O-O {[%clk 0:02:37]}  Ng6 {[%clk 0:02:50]} 10. Re1 {[%clk 0:02:37]}  O-O {[%clk 0:02:50]} 11. Na3 {[%clk 0:02:10]}  f6 {[%clk 0:02:44]} 12. Nb5 {[%clk 0:02:06]}  Qf7 {[%clk 0:02:43]} 13. b4 {[%clk 0:01:53]}  Be7 {[%clk 0:02:40]} 14. exf6 {[%clk 0:01:34]}  Bxf6 {[%clk 0:02:40]} 15. Nd6 {[%clk 0:01:31]}  Qd7 {[%clk 0:02:39]} 16. Nxc8 {[%clk 0:01:31]}  Raxc8 {[%clk 0:02:40]} 17. Bd2 {[%clk 0:01:09]}  e5 {[%clk 0:02:37]} 18. Bxg6 {[%clk 0:01:05]}  hxg6 {[%clk 0:02:38]} 19. b5 {[%clk 0:01:06]}  Na5 {[%clk 0:02:33]} 20. Nxe5 {[%clk 0:01:06]}  Bxe5 {[%clk 0:02:26]} 21. Qxe5 {[%clk 0:01:07]}  Nc4 {[%clk 0:02:27]} 22. Qd4 {[%clk 0:01:08]}  Qxb5 {[%clk 0:02:27]} 23. Re7 {[%clk 0:01:04]}  Rf7 {[%clk 0:02:27]} 24. Rxf7 {[%clk 0:00:50]}  Kxf7 {[%clk 0:02:27]} 25. Re1 {[%clk 0:00:48]}  Re8 {[%clk 0:02:22]} 26. Rxe8 {[%clk 0:00:48]}  Kxe8 {[%clk 0:02:23]} 27. Qd3 {[%clk 0:00:30]}  Kf7 {[%clk 0:02:14]} 28. h3 {[%clk 0:00:25]}  Qc6 {[%clk 0:02:09]} 29. Bf4 {[%clk 0:00:25]}  Qe6 {[%clk 0:02:08]} 30. Kh2 {[%clk 0:00:24]}  a5 {[%clk 0:01:54]} 31. f3 {[%clk 0:00:22]}  Kg8 {[%clk 0:01:50]} 32. Qd4 {[%clk 0:00:18]}  Kh7 {[%clk 0:01:50]} 33. Bc7 {[%clk 0:00:10]}  Qd7 {[%clk 0:01:47]} 34. Bb8 {[%clk 0:00:04]}  a4 {[%clk 0:01:39]} 35. Bg3 {[%clk 0:00:05]}  b5 {[%clk 0:01:32]} 36. Bf4 {[%clk 0:00:06]}  Qf5 {[%clk 0:01:32]} 37. Bg3 {[%clk 0:00:04]}  g5 {[%clk 0:01:31]} 38. Bc7 {[%clk 0:00:05]}  Qc2 {[%clk 0:01:29]} 39. Qxd5 {[%clk 0:00:04]}  Qxg2+ {[%clk 0:01:18]} 40. Kxg2 {[%clk 0:00:05]}  Ne3+ {[%clk 0:01:19]} 41. Kf2 {[%clk 0:00:05]}  Nxd5 {[%clk 0:01:20]} 42. Be5 {[%clk 0:00:05]}  Kg6 {[%clk 0:01:20]} 43. Ke2 {[%clk 0:00:06]}  Nf4+ {[%clk 0:01:09]} 44. Bxf4 {[%clk 0:00:05]}  gxf4 {[%clk 0:01:10]} 45. Kd3 {[%clk 0:00:06]}  Kh5 {[%clk 0:01:10]} 46. Kd4 {[%clk 0:00:03]}  Kh4 {[%clk 0:01:09]} 47. Kc5 {[%clk 0:00:03]}  Kg3 {[%clk 0:01:09]} 48. Kxb5 {[%clk 0:00:04]}  Kxf3 {[%clk 0:01:09]} 49. c4 {[%clk 0:00:05]}  Kg3 {[%clk 0:01:08]} 50. c5 {[%clk 0:00:06]}  f3 {[%clk 0:01:09]} 51. c6 {[%clk 0:00:07]}  f2 {[%clk 0:01:10]} 52. c7 {[%clk 0:00:07]}  f1=Q+ {[%clk 0:01:11]} 53. Kxa4 {[%clk 0:00:08]}  Qxh3 {[%clk 0:01:10]} 0-1


[Site "https://www.chess.com"]

[Event "Titled Tuesday Blitz November 29 Late 2022"]
[White "Deac, Bogdan-Daniel"]
[Black "Donchenko, Alexander"]
[WhiteFideId "1226380"]
[BlackFideId "24603295"]
[WhiteElo "2648"]
[BlackElo "2572"]
[Result "1-0"]
[Round "06"]
[TimeControl "180+1"]
[Date "2022.11.30"]
[WhiteClock "0:00:02"]
[BlackClock "0:00:03"]

1. d4 {[%clk 0:03:00]}  Nf6 {[%clk 0:02:59]} 2. c4 {[%clk 0:03:01]}  e6 {[%clk 0:03:00]} 3. Nc3 {[%clk 0:03:01]}  Bb4 {[%clk 0:02:59]} 4. Qc2 {[%clk 0:03:01]}  c5 {[%clk 0:02:59]} 5. dxc5 {[%clk 0:03:01]}  O-O {[%clk 0:02:59]} 6. a3 {[%clk 0:02:59]}  Bxc5 {[%clk 0:03:00]} 7. Nf3 {[%clk 0:02:59]}  b6 {[%clk 0:02:58]} 8. Bf4 {[%clk 0:02:58]}  Bb7 {[%clk 0:02:58]} 9. Rd1 {[%clk 0:02:58]}  Nc6 {[%clk 0:02:54]} 10. h3 {[%clk 0:02:55]}  a5 {[%clk 0:02:48]} 11. e3 {[%clk 0:02:54]}  Qe7 {[%clk 0:02:46]} 12. Bg5 {[%clk 0:02:41]}  h6 {[%clk 0:02:45]} 13. Bh4 {[%clk 0:02:41]}  Qd8 {[%clk 0:02:24]} 14. Bxf6 {[%clk 0:02:31]}  Qxf6 {[%clk 0:02:23]} 15. Rxd7 {[%clk 0:02:30]}  Ba6 {[%clk 0:02:11]} 16. Be2 {[%clk 0:02:19]}  Rfd8 {[%clk 0:01:57]} 17. Rxd8+ {[%clk 0:01:55]}  Rxd8 {[%clk 0:01:58]} 18. O-O {[%clk 0:01:55]}  Ne5 {[%clk 0:01:48]} 19. Nxe5 {[%clk 0:01:47]}  Qxe5 {[%clk 0:01:49]} 20. Rd1 {[%clk 0:01:47]}  Rc8 {[%clk 0:01:45]} 21. Qa4 {[%clk 0:01:38]}  Bf8 {[%clk 0:01:30]} 22. Rd4 {[%clk 0:00:59]}  Bc5 {[%clk 0:01:26]} 23. Rd7 {[%clk 0:00:24]}  Qf5 {[%clk 0:01:06]} 24. Qd1 {[%clk 0:00:09]}  Qf6 {[%clk 0:00:59]} 25. Ra7 {[%clk 0:00:07]}  Rd8 {[%clk 0:00:59]} 26. Qe1 {[%clk 0:00:06]}  Bc8 {[%clk 0:00:58]} 27. Ra8 {[%clk 0:00:04]}  Bb7 {[%clk 0:00:54]} 28. Rxd8+ {[%clk 0:00:03]}  Qxd8 {[%clk 0:00:55]} 29. Qd1 {[%clk 0:00:03]}  Qe7 {[%clk 0:00:11]} 30. Bf3 {[%clk 0:00:03]}  Ba6 {[%clk 0:00:11]} 31. Qd3 {[%clk 0:00:03]}  Qf6 {[%clk 0:00:11]} 32. Bc6 {[%clk 0:00:03]}  g6 {[%clk 0:00:09]} 33. Bf3 {[%clk 0:00:02]}  Kg7 {[%clk 0:00:03]} 34. Be4 {[%clk 0:00:02]} 1-0


[Site "https://www.chess.com"]

[Event "Titled Tuesday Blitz November 29 Late 2022"]
[White "Dias, Joao Batista"]
[Black "Mickiewicz, Piotr"]
[WhiteFideId "2108240"]
[BlackFideId "1114891"]
[WhiteElo "1898"]
[BlackElo "2246"]
[Result "0-1"]
[Round "06"]
[TimeControl "180+1"]
[Date "2022.11.30"]
[WhiteClock "0:01:58"]
[BlackClock "0:01:01"]

1. e4 {[%clk 0:03:00]}  c5 {[%clk 0:02:58]} 2. Nf3 {[%clk 0:03:00]}  d6 {[%clk 0:02:57]} 3. d4 {[%clk 0:03:00]}  cxd4 {[%clk 0:02:57]} 4. Nxd4 {[%clk 0:03:00]}  Nf6 {[%clk 0:02:57]} 5. Nc3 {[%clk 0:02:59]}  a6 {[%clk 0:02:57]} 6. Bd3 {[%clk 0:02:59]}  g6 {[%clk 0:02:50]} 7. O-O {[%clk 0:02:59]}  Bg7 {[%clk 0:02:50]} 8. Be3 {[%clk 0:02:58]}  b5 {[%clk 0:02:47]} 9. a3 {[%clk 0:02:57]}  Bb7 {[%clk 0:02:47]} 10. Rb1 {[%clk 0:02:56]}  Nbd7 {[%clk 0:02:46]} 11. f3 {[%clk 0:02:56]}  Rc8 {[%clk 0:02:42]} 12. Nde2 {[%clk 0:02:53]}  Ne5 {[%clk 0:02:36]} 13. Nf4 {[%clk 0:02:51]}  Nxd3 {[%clk 0:02:35]} 14. cxd3 {[%clk 0:02:48]}  e5 {[%clk 0:02:20]} 15. Nfe2 {[%clk 0:02:46]}  d5 {[%clk 0:02:20]} 16. Bg5 {[%clk 0:02:39]}  d4 {[%clk 0:02:14]} 17. Na2 {[%clk 0:02:34]}  h6 {[%clk 0:02:13]} 18. Bd2 {[%clk 0:02:32]}  O-O {[%clk 0:02:11]} 19. Nb4 {[%clk 0:02:31]}  a5 {[%clk 0:02:06]} 20. Nc2 {[%clk 0:02:31]}  Nd7 {[%clk 0:02:01]} 21. Rc1 {[%clk 0:02:27]}  Nc5 {[%clk 0:01:57]} 22. Na1 {[%clk 0:02:24]}  Nxd3 {[%clk 0:01:54]} 23. Bxa5 {[%clk 0:02:20]}  Qxa5 {[%clk 0:01:16]} 24. Rxc8 {[%clk 0:02:18]}  Rxc8 {[%clk 0:01:15]} 25. Qxd3 {[%clk 0:02:18]}  b4 {[%clk 0:01:10]} 26. Nb3 {[%clk 0:02:10]}  Qb6 {[%clk 0:01:10]} 27. Rc1 {[%clk 0:02:03]}  bxa3 {[%clk 0:01:06]} 28. bxa3 {[%clk 0:02:01]}  Bf8 {[%clk 0:01:03]} 29. Rxc8 {[%clk 0:02:00]}  Bxc8 {[%clk 0:01:02]} 30. a4 {[%clk 0:01:58]}  Ba6 {[%clk 0:01:01]} 0-1


[Site "https://www.chess.com"]

[Event "Titled Tuesday Blitz November 29 Late 2022"]
[White "Djordjevic, Vuk"]
[Black "Manelyuk, Daniil"]
[WhiteFideId "902098"]
[BlackFideId "44173920"]
[WhiteElo "2456"]
[BlackElo "2209"]
[Result "0-1"]
[Round "06"]
[TimeControl "180+1"]
[Date "2022.11.30"]
[WhiteClock "0:00:10"]
[BlackClock "0:01:22"]

1. d4 {[%clk 0:03:00]}  Nf6 {[%clk 0:02:59]} 2. Bg5 {[%clk 0:03:01]}  Ne4 {[%clk 0:02:58]} 3. Bf4 {[%clk 0:03:01]}  d5 {[%clk 0:02:56]} 4. e3 {[%clk 0:03:01]}  g6 {[%clk 0:02:55]} 5. Bd3 {[%clk 0:03:01]}  Nd6 {[%clk 0:02:54]} 6. Be5 {[%clk 0:02:52]}  f6 {[%clk 0:02:53]} 7. Bf4 {[%clk 0:02:52]}  Bg7 {[%clk 0:02:50]} 8. h4 {[%clk 0:02:46]}  e5 {[%clk 0:02:50]} 9. dxe5 {[%clk 0:02:44]}  fxe5 {[%clk 0:02:51]} 10. Bg5 {[%clk 0:02:44]}  Qd7 {[%clk 0:02:51]} 11. h5 {[%clk 0:02:44]}  e4 {[%clk 0:02:50]} 12. Be2 {[%clk 0:02:40]}  Bxb2 {[%clk 0:02:43]} 13. Nd2 {[%clk 0:02:38]}  Qf5 {[%clk 0:02:37]} 14. Nh3 {[%clk 0:02:29]}  h6 {[%clk 0:02:29]} 15. Bf4 {[%clk 0:02:00]}  g5 {[%clk 0:02:28]} 16. Bxd6 {[%clk 0:01:49]}  cxd6 {[%clk 0:02:29]} 17. Rb1 {[%clk 0:01:46]}  Be5 {[%clk 0:02:22]} 18. c4 {[%clk 0:01:32]}  d4 {[%clk 0:02:18]} 19. exd4 {[%clk 0:01:29]}  Bxd4 {[%clk 0:02:19]} 20. O-O {[%clk 0:01:13]}  O-O {[%clk 0:01:58]} 21. Nb3 {[%clk 0:01:01]}  Be5 {[%clk 0:01:57]} 22. Nd4 {[%clk 0:00:55]}  Qf6 {[%clk 0:01:51]} 23. Nb5 {[%clk 0:00:54]}  Bxh3 {[%clk 0:01:49]} 24. gxh3 {[%clk 0:00:53]}  Qf4 {[%clk 0:01:46]} 25. Qd5+ {[%clk 0:00:43]}  Kh8 {[%clk 0:01:45]} 26. Qxe5+ {[%clk 0:00:32]}  Qxe5 {[%clk 0:01:39]} 27. Nc7 {[%clk 0:00:32]}  Nc6 {[%clk 0:01:36]} 28. Nxa8 {[%clk 0:00:32]}  Nd4 {[%clk 0:01:36]} 29. Bg4 {[%clk 0:00:32]}  Rxa8 {[%clk 0:01:29]} 30. Rfd1 {[%clk 0:00:31]}  Rf8 {[%clk 0:01:28]} 31. Kg2 {[%clk 0:00:16]}  e3 {[%clk 0:01:26]} 32. f3 {[%clk 0:00:12]}  e2 {[%clk 0:01:25]} 33. Re1 {[%clk 0:00:12]}  Nc2 {[%clk 0:01:25]} 34. Kf2 {[%clk 0:00:09]}  Nxe1 {[%clk 0:01:23]} 35. Rxe1 {[%clk 0:00:10]}  Qh2+ {[%clk 0:01:23]} 36. Ke3 {[%clk 0:00:10]}  Re8+ {[%clk 0:01:22]} 37. Kd3 {[%clk 0:00:10]}  Qf2 {[%clk 0:01:22]} 0-1


[Site "https://www.chess.com"]